fUSD/lending_fUSD_20250314
["ID","MTS","AMOUNT","RATE_DAILY","PERIOD"]
[356153161,1741975846639,-700.0,0.0001961,2]
[356153162,1741975846649,-700.0,0.0001961,2]
[356153164,1741975846659,-700.0,0.0001961,2]
[356153166,1741975846668,-700.0,0.0001961,2]
[356153168,1741975846677,-700.0,0.0001961,2]
[356153170,1741975846687,-1065.48495989,0.0001961,2]
[356153172,1741975846697,-500.0,0.0001961,2]
[356153174,1741975846707,-853.48293617,0.0001961,2]
[356153176,1741975846716,-500.0,0.0001961,2]
[356153178,1741975846726,-500.0,0.0001961,2]
[356153180,1741975846735,-500.0,0.0001961,2]
[356153182,1741975846746,-500.0,0.0001961,2]
[356153183,1741975846756,-500.0,0.0001961,2]
[356153184,1741975846766,-514.03515149,0.0001961,2]
[356153185,1741975846776,-500.0,0.0001961,2]
[356153186,1741975846786,-500.0,0.0001961,2]
[356153187,1741975846795,-500.0,0.0001961,2]
[356153188,1741975846804,-500.0,0.0001961,2]
[356153189,1741975846814,-609.51785836,0.0001961,2]
[356153190,1741975846824,-442.02,0.00019644,2]
[356153191,1741975846834,-221.05,0.00019658,2]
[356153192,1741975846843,-205.0,0.0001968,2]
[356153193,1741975846853,-209.0,0.0001968,2]
[356153194,1741975846863,-203.0,0.0001968,2]
[356153195,1741975846872,-212.0,0.0001968,2]
[356153196,1741975846882,-1349.0402285,0.00019692,2]
[356153197,1741975846892,-165.666572,0.00019824,3]
[356153198,1741975846903,-3012.3153964,0.0001987,2]
[356153199,1741975846913,-150.0,0.00019899,2]
[356153200,1741975846923,-514.0,0.0001997,2]
[356153201,1741975846932,-32673.66798436,0.00019999,2]
[356153202,1741975846942,-535.0,0.0002,2]
[356153203,1741975846951,-1000.0,0.0002,2]
[356153204,1741975846962,-91316.19542796,0.0002,2]
[356153205,1741975846972,-299.13416328,0.0002,2]
[356153206,1741975846982,-10000.0,0.0002,2]
[356153207,1741975846992,-1472.58353132,0.0002,2]
[356153208,1741975847002,-4273.77530705,0.0002,2]
[356153209,1741975847012,-50000.0,0.0002,2]
[356153210,1741975847022,-7500.0,0.0002,2]
[356153211,1741975847032,-3843.5250765,0.0002,2]
[356153212,1741975847042,-45853.11570625,0.0002,2]
[356153213,1741975847051,-3950.0,0.0002,2]
[356153214,1741975847061,-1243.10241662,0.0002,2]
[356153215,1741975847071,-762.10712054,0.0002,7]
[356153216,1741975847080,-200.38253657,0.0002,10]
[356153217,1741975847089,-11760.85971571,0.0002,2]
[356153218,1741975847099,-1003.01299385,0.0002,2]
[356153219,1741975847108,-1728.41497106,0.0002,2]
[356153220,1741975847118,-207.0,0.0002,2]
[356153221,1741975847127,-229.11,0.0002,3]
[356153222,1741975847136,-381.0,0.0002,2]
[356153223,1741975847146,-152.7524165,0.0002,5]
[356153224,1741975847155,-2000.0,0.0002,2]
[356153225,1741975847165,-2000.0,0.0002,2]
[356153226,1741975847174,-205.79,0.0002,2]
[356153227,1741975847184,-2000.0,0.0002,2]
[356153228,1741975847193,-2000.0,0.0002,2]
[356153229,1741975847203,-2000.0,0.0002,2]
[356153230,1741975847212,-919.6616,0.0002,2]
[356153231,1741975847222,-4059.009546,0.0002,10]
[356153232,1741975847232,-1203.101965,0.0002,2]
[356153233,1741975847244,-2000.0,0.0002,2]
[356153234,1741975847255,-160.10260719,0.0002,2]
[356153235,1741975847264,-500.0,0.0002,2]
[356153236,1741975847273,-5772.0,0.0002001,2]
[356153237,1741975847283,-24001.06844471,0.0002001,2]
[356153238,1741975847293,-8935.69769506,0.0002001,2]
[356153239,1741975847303,-12526.05761819,0.0002001,8]
[356153240,1741975847312,-4926.84592022,0.0002001,2]
[356153241,1741975847324,-2000.0,0.0002001,2]
[356153242,1741975847334,-2000.0,0.0002002,2]
[356153243,1741975847343,-2016.743894,0.0002003,2]
[356153244,1741975847352,-41850.98216059,0.0002015,2]
[356153245,1741975847361,-1663.15785394,0.0002015,2]
[356153246,1741975847371,-205.0,0.000203,2]
[356153247,1741975847381,-209.0,0.000203,2]
[356153248,1741975847391,-203.0,0.000203,2]
[356153249,1741975847400,-212.0,0.000203,2]
[356153250,1741975847409,-207.0,0.000203,2]
[356153251,1741975847419,-595.52593268,0.00020329,2]
[356153252,1741975847428,-150.0,0.00020332,2]
[356153253,1741975847437,-87557.62350587,0.00020363,2]
[356153254,1741975847446,-7379.00253257,0.00020389,2]
[356153255,1741975847456,-8940.69081541,0.00020418,2]
[356153256,1741975847465,-5000.0,0.00020418,2]
[356153257,1741975847474,-5000.0,0.00020418,2]
[356153258,1741975847483,-5000.0,0.00020418,2]
[356153259,1741975847493,-2258.0,0.00020513,2]
[356153260,1741975847502,-20534.67,0.00020548,2]
[356153261,1741975847511,-174.18,0.00020548,2]
[356153262,1741975847520,-1986.75842127,0.00020612,2]
[356153263,1741975847530,-21776.61513969,0.000207,2]
[356153264,1741975847539,-150.0,0.00020764,2]
[356153265,1741975847549,-7928.05,0.00020822,2]
[356153266,1741975847559,-205.90818,0.00020919,2]
[356153267,1741975847568,-205.0,0.0002092,2]
[356153268,1741975847577,-209.0,0.0002092,2]
[356153269,1741975847587,-203.0,0.0002092,2]
[356153270,1741975847597,-212.0,0.0002092,2]
[356153271,1741975847607,-207.0,0.0002092,2]
[356153272,1741975847616,-237.0,0.0002092,2]
[356153273,1741975847625,-238.0,0.0002092,2]
[356153274,1741975847635,-237.0,0.0002092,2]
[356153275,1741975847644,-942.45226472,0.00020924,2]
[356153276,1741975847654,-524.29,0.00020971,30]
[356153277,1741975847664,-219.0,0.00021,2]
[356153278,1741975847673,-20000.0,0.00021,2]
[356153279,1741975847682,-1147.02965312,0.00021,2]
[356153280,1741975847691,-189.31155249,0.00021,2]
[356153281,1741975847701,-9058.32841558,0.00021,2]
[356153282,1741975847902,-208.68805325,0.00021,120]
[356153283,1741975847913,-148.70127102,0.00021,2]
[356153284,1741975847926,-313.45516705,0.00021,2]
[356153327,1741977032413,-362.5,9.6e-05,3]
[356153328,1741977032527,-237.5,9.6e-05,3]
[356153329,1741977032537,-550.0,9.65e-05,2]
[356153330,1741977032547,-905.68,9.7e-05,3]
[356153331,1741977032559,-380.93663666,9.7e-05,3]
[356153332,1741977032571,-13.38336334,9.7e-05,3]
[356153333,1741977032581,-550.0,9.796e-05,2]
[356153334,1741977032591,-1900.0,9.8e-05,3]
[356153335,1741977032601,-825.2193073,9.9e-05,3]
[356153336,1741977032622,-455.4,9.9e-05,3]
[356153337,1741977032638,-1319.3806927,9.9e-05,3]
[356153338,1741977032648,-513.98605175,9.98e-05,2]
[356153339,1741977032660,-923.95,9.98e-05,2]
[356153340,1741977032673,-374.252,9.98e-05,2]
[356153447,1741977038236,-18135.68698298,9.98e-05,2]
[356153449,1741977038248,-627.19623431,9.98e-05,2]
[356153450,1741977038301,-4227.7,9.98e-05,2]
[356153451,1741977038362,-1368.64604121,9.98e-05,2]
[356153452,1741977038424,-320.14840894,9.98e-05,2]
[356153453,1741977038436,-411.93182001,9.98e-05,2]
[356153454,1741977038447,-755.92999996,9.98e-05,2]
[356153455,1741977038458,-1692.0,9.98e-05,2]
[356153456,1741977038470,-856.6335725,9.98e-05,2]
[356153641,1741977040538,-629.23687052,9.98e-05,2]
[356153687,1741977040774,-15519.03701282,9.98e-05,2]
[356153690,1741977040783,-150.0,9.99e-05,2]
[356153693,1741977040793,-609.58798003,0.0001,2]
[356153696,1741977040803,-332.19,0.0001,2]
[356153699,1741977040812,-183503.9647421,0.0001,2]
[356153704,1741977040824,-997.10354129,0.0001,2]
[356154289,1741977044030,-5766.17478965,0.0001,2]
[356154290,1741977044042,-1051.91736548,0.0001,2]
[356154291,1741977044053,-10632.41659197,0.0001,2]
[356154292,1741977044064,-422.54166336,0.0001,2]
[356154294,1741977044076,-7295.34874343,0.0001,2]
[356154296,1741977044087,-2745.4001,0.0001,2]
[356154298,1741977044098,-6130.49995,0.0001,2]
[356154355,1741977046407,-3152.050096,0.0001,2]
[356154356,1741977046419,-15610.0,0.0001,2]
[356154357,1741977046431,-14178.25,0.0001,2]
[356154359,1741977046443,-974.9999998,0.0001,2]
[356154369,1741977046524,-55200.38007642,0.0001,2]
[356154371,1741977046644,-15745.26846977,0.0001,2]
[356154372,1741977046656,-83532.80262713,0.0001,2]
[356154373,1741977046704,-23769.68901782,0.0001,2]
[356154377,1741977474091,250.0,9e-05,2]
[356154378,1741977619481,800.0,9.3e-05,3]
[356154379,1741977621634,1700.0,9.4e-05,3]
[356154380,1741977623903,2500.0,9.5e-05,3]
[356154389,1741978049687,900.0,9.3e-05,3]
[356154390,1741978051409,52.05058819,9.4e-05,3]
[356154391,1741978051431,1747.94941181,9.4e-05,3]
[356154392,1741978053546,2800.0,9.5e-05,3]
[356154393,1741978131716,-528.23,0.00016493,30]
[356154394,1741978151178,-152.23379582,0.00015,20]
[356154398,1741978231546,-1190.87951664,9.583e-05,2]
[356154400,1741978231601,-441.18048336,9.583e-05,2]
[356154401,1741978231609,-1648.49031376,9.6e-05,3]
[356154402,1741978231620,-585.17802667,9.6e-05,3]
[356154403,1741978231631,-1466.33165957,9.6e-05,3]
[356154404,1741978231640,-919.34,9.672e-05,2]
[356154405,1741978231649,-300.0,9.699e-05,2]
[356154406,1741978231658,-4600.0,9.7e-05,3]
[356154407,1741978231667,-550.0,9.704e-05,2]
[356154408,1741978231676,-1696.083,9.8e-05,2]
[356154409,1741978231686,-900.0,9.8e-05,3]
[356154410,1741978231696,-150.0,9.863e-05,2]
[356154411,1741978231705,-26187.79152728,9.89e-05,2]
[356154412,1741978231716,-106.06454265,9.89e-05,2]
[356154413,1741978231726,-4080.02793018,9.899e-05,2]
[356154414,1741978231735,-150.0,9.899e-05,2]
[356154415,1741978231745,-1730.8499,9.9e-05,2]
[356154416,1741978231754,-5706.5085,9.9e-05,2]
[356154417,1741978231763,-1656.54912616,9.9e-05,2]
[356154418,1741978231774,-8762.94027384,9.9e-05,2]
[356154419,1741978231784,-4368.19302716,9.9e-05,2]
[356154420,1741978231820,-18163.56017284,9.9e-05,2]
[356154421,1741978231831,-6150.40496186,9.9e-05,2]
[356154422,1741978231844,-13148.83183814,9.9e-05,2]
[356154423,1741978231854,-288.3869,9.9e-05,2]
[356154424,1741978231863,-14053.9829,9.9e-05,2]
[356154425,1741978231874,-28383.7743,9.9e-05,2]
[356154426,1741978231884,-1230.6217,9.9e-05,2]
[356154427,1741978231895,-831.4146,9.9e-05,2]
[356154428,1741978231905,-900.0,9.9e-05,3]
[356154429,1741978231915,-153.43057872,9.973e-05,2]
[356154430,1741978231925,-957.72,9.999e-05,2]
[356154431,1741978231935,-491.0,9.999e-05,2]
[356154432,1741978231945,-2414.39769389,0.0001,2]
[356154433,1741978231955,-3240.31487353,0.0001,2]
[356154434,1741978231967,-417.842,0.0001,2]
[356154435,1741978231979,-898.86978911,0.0001,2]
[356154437,1741978231992,-370.04022624,0.0001,2]
[356154892,1741978237437,-889.68,0.0001,2]
[356154899,1741978237540,-1888.04250857,0.0001,2]
[356154900,1741978237551,-1890.54913191,0.0001,2]
[356154901,1741978237649,-1921.83254223,0.0001,2]
[356154902,1741978237660,-3366.08943692,0.0001,2]
[356154903,1741978237672,-1281.77753442,0.0001,2]
[356154904,1741978237683,-257.26787767,0.0001,2]
[356155084,1741978239772,-349.4262581,0.0001,2]
[356155086,1741978239785,-948.0804952,0.0001,2]
[356155092,1741978239839,-304.03316476,0.0001,2]
[356155097,1741978239898,-607.49850709,0.0001,2]
[356155099,1741978239910,-267.79485005,0.0001,2]
[356155109,1741978240026,-2104.79837284,0.0001,2]
[356155337,1741978242662,-784.65,0.0001,2]
[356155353,1741978242773,-31314.67900862,0.0001,2]
[356155355,1741978242785,-4249.70617273,0.0001,2]
[356155398,1741978243188,-96661.42749301,0.0001,2]
[356155658,1741978245728,-2212.500005,0.0001,2]
[356155659,1741978245740,-25496.60207463,0.0001,2]
[356155660,1741978245788,-4750.68263925,0.0001,2]
[356155661,1741978245800,-5683.7881209,0.0001,2]
[356155662,1741978245811,-3052.8983816,0.0001,2]
[356155677,1741978245955,-669.385,0.0001,2]
[356155679,1741978245966,-302503.82895122,0.0001,2]
[356155681,1741978245978,-331727.92912985,0.0001,2]
[356155686,1741978246015,-52183.49804259,0.0001,2]
[356155927,1741978387175,-2000.0,0.000149,13]
[356155928,1741978388675,-2000.0,0.000149,13]
[356155929,1741978390962,873.37,8.219e-05,2]
[356156026,1741978722741,-500.0,0.00019178,30]
[356156027,1741978722766,-300.47114998,0.00019178,30]
[356156028,1741978722794,-528.23,0.00020971,30]
[356156029,1741978722832,-21825.53524326,0.00022,30]
[356156030,1741978722859,-500.0,0.000231,30]
[356156031,1741978722884,-500.0,0.000231,30]
[356156032,1741978722909,-500.0,0.000231,30]
[356156033,1741978722935,-500.0,0.000231,30]
[356156034,1741978722959,-500.0,0.000231,30]
[356156035,1741978722985,-500.0,0.000231,30]
[356156036,1741978723010,-500.0,0.000231,30]
[356156037,1741978723036,-500.0,0.000231,30]
[356156038,1741978723061,-500.0,0.000231,30]
[356156039,1741978723086,-700.0,0.000231,30]
[356156040,1741978723111,-500.0,0.000231,30]
[356156041,1741978723136,-503.16035299,0.000231,30]
[356156042,1741978723161,-500.0,0.000231,30]
[356156043,1741978723189,-500.0,0.000231,30]
[356156044,1741978723215,-500.0,0.000231,30]
[356156045,1741978723243,-502.75871665,0.000231,30]
[356156046,1741978723270,-500.0,0.000231,30]
[356156047,1741978723295,-342.25311896,0.000231,30]
[356156048,1741978723319,-500.0,0.000231,30]
[356156049,1741978723344,-500.0,0.000231,30]
[356156050,1741978723368,-500.0,0.000231,30]
[356156051,1741978723392,-502.5364407,0.000231,30]
[356156052,1741978723416,-500.0,0.000231,30]
[356156053,1741978723440,-500.0,0.000231,30]
[356156054,1741978723465,-500.0,0.000231,30]
[356156055,1741978723490,-500.0,0.000231,30]
[356156056,1741978723516,-500.0,0.000231,30]
[356156057,1741978723545,-500.0,0.000231,30]
[356156058,1741978723571,-500.0,0.000231,30]
[356156059,1741978723596,-500.0,0.000231,30]
[356156060,1741978723620,-700.0,0.000231,30]
[356156061,1741978723645,-500.0,0.000231,30]
[356156062,1741978723669,-853.72929878,0.000231,30]
[356156063,1741978723695,-500.0,0.000231,30]
[356156064,1741978723718,-500.0,0.000231,30]
[356156065,1741978723743,-500.0,0.000231,30]
[356156066,1741978723766,-500.0,0.000231,30]
[356156067,1741978723792,-500.0,0.000231,30]
[356156068,1741978723816,-500.0,0.000231,30]
[356156069,1741978723841,-700.0,0.000231,30]
[356156070,1741978723867,-700.0,0.000231,30]
[356156071,1741978723891,-700.0,0.000231,30]
[356156072,1741978723914,-700.0,0.000231,30]
[356156073,1741978723938,-700.0,0.000231,30]
[356156074,1741978723963,-700.0,0.000231,30]
[356156075,1741978723987,-700.0,0.000231,30]
[356156076,1741978724011,-700.0,0.000231,30]
[356156077,1741978724035,-700.0,0.000231,30]
[356156078,1741978724060,-700.0,0.000231,30]
[356156079,1741978724084,-700.0,0.000231,30]
[356156080,1741978724108,-981.81538826,0.000231,30]
[356156081,1741978724132,-500.0,0.000231,30]
[356156082,1741978724157,-500.0,0.000231,30]
[356156083,1741978724182,-500.0,0.000231,30]
[356156084,1741978724208,-500.0,0.000231,30]
[356156085,1741978724233,-500.0,0.000231,30]
[356156086,1741978724258,-500.0,0.000231,30]
[356156087,1741978724283,-500.0,0.000231,30]
[356156088,1741978724310,-500.0,0.000231,30]
[356156089,1741978724334,-500.0,0.000231,30]
[356156090,1741978724358,-500.0,0.000231,30]
[356156091,1741978724382,-500.0,0.000231,30]
[356156092,1741978724407,-500.0,0.000231,30]
[356156093,1741978724431,-500.0,0.000231,30]
[356156094,1741978724455,-500.0,0.000231,30]
[356156095,1741978724479,-500.0,0.000231,30]
[356156096,1741978724503,-500.0,0.000231,30]
[356156097,1741978724528,-500.0,0.000231,30]
[356156098,1741978724553,-500.0,0.000231,30]
[356156099,1741978724578,-500.0,0.000231,30]
[356156100,1741978724612,-500.0,0.000231,30]
[356156101,1741978724644,-306.79963578,0.00025,60]
[356156102,1741978724672,-528.23,0.0002545,30]
[356156103,1741978724700,-10567.95,0.00026137,120]
[356156104,1741978724726,-2000.0,0.00026301,120]
[356156105,1741978724751,-500.0,0.00026301,120]
[356156106,1741978724779,-433.0,0.00027,120]
[356156107,1741978724805,-378.0,0.00027,120]
[356156108,1741978724832,-2000.0,0.000273,120]
[356156109,1741978724872,-2000.0,0.00027801,120]
[356156110,1741978724899,-916.7417318,0.00028,80]
[356156111,1741978724927,-800.0,0.00028,120]
[356156112,1741978724954,-68317.86254875,0.00028,30]
[356156113,1741978724987,-682.44,0.000286,31]
[356156114,1741978725018,-682.44,0.000286,31]
[356156115,1741978725049,-682.44,0.000286,31]
[356156116,1741978725078,-682.44,0.000286,31]
[356156117,1741978725107,-682.44,0.000286,31]
[356156118,1741978725135,-682.44,0.000286,31]
[356156119,1741978725163,-682.44,0.000286,31]
[356156120,1741978725201,-682.44,0.000286,31]
[356156121,1741978725231,-682.44,0.000286,31]
[356156122,1741978725259,-682.44,0.000286,31]
[356156123,1741978725287,-682.44,0.000286,31]
[356156124,1741978725314,-682.44,0.000286,31]
[356156125,1741978725342,-682.44,0.000286,31]
[356156126,1741978725611,-682.44,0.000286,31]
[356156127,1741978725651,-682.44,0.000286,31]
[356156128,1741978725679,-682.44,0.000286,31]
[356156129,1741978725704,-900.0,0.00029,30]
[356156130,1741978725729,-909.6853504,0.00029,120]
[356156131,1741978725753,-200.75370104,0.00029,30]
[356156132,1741978725783,-50000.0,0.00029186,30]
[356156133,1741978725809,-50000.0,0.00029186,31]
[356156134,1741978725835,-50000.0,0.00029186,32]
[356156135,1741978725861,-50000.0,0.00029186,33]
[356156136,1741978725887,-50000.0,0.00029186,34]
[356156138,1741978726644,-1108.320971,0.00029301,120]
[356156139,1741978726668,-1414.57,0.000294,120]
[356156140,1741978726697,-682.44,0.000298,31]
[356156141,1741978726725,-682.44,0.000298,31]
[356156142,1741978726751,-682.44,0.000298,31]
[356156143,1741978726778,-682.44,0.000298,31]
[356156144,1741978726804,-682.44,0.000298,31]
[356156145,1741978726831,-682.44,0.000298,31]
[356156146,1741978726856,-682.44,0.000298,31]
[356156147,1741978726883,-682.44,0.000298,31]
[356156148,1741978726911,-682.44,0.000298,31]
[356156149,1741978726939,-682.44,0.000298,31]
[356156150,1741978726968,-682.44,0.000298,31]
[356156151,1741978726996,-682.44,0.000298,31]
[356156152,1741978727023,-682.44,0.000298,31]
[356156153,1741978727051,-682.44,0.000298,31]
[356156154,1741978727078,-682.44,0.000298,31]
[356156155,1741978727106,-682.44,0.000298,31]
[356156156,1741978727133,-682.44,0.000298,31]
[356156157,1741978727160,-682.44,0.000298,31]
[356156158,1741978727194,-682.44,0.000298,31]
[356156159,1741978727223,-682.44,0.000298,31]
[356156160,1741978727250,-682.44,0.000298,31]
[356156161,1741978727279,-682.44,0.000298,31]
[356156162,1741978727307,-682.44,0.000298,31]
[356156163,1741978727337,-682.44,0.000298,31]
[356156164,1741978727363,-1000.0,0.000299,120]
[356156165,1741978727389,-528.23,0.00029928,30]
[356156166,1741978727415,-1558.96578891,0.0003,120]
[356156167,1741978727441,-255.9572288,0.0003,120]
[356156168,1741978727467,-185.48088338,0.0003,60]
[356156169,1741978727491,-154.75765377,0.0003,120]
[356156170,1741978727517,-1500.0,0.0003,120]
[356156171,1741978727542,-1000.0,0.0003,120]
[356156172,1741978727567,-900.0,0.0003,31]
[356156173,1741978727591,-153.976541,0.0003,30]
[356156174,1741978727615,-907.7730206,0.0003,120]
[356156175,1741978727643,-150.0,0.00030071,120]
[356156176,1741978727668,-288.0,0.0003014,120]
[356156177,1741978727694,-250.0,0.000308,30]
[356156178,1741978727718,-931.9315898,0.00031,32]
[356156179,1741978727748,-682.44,0.000311,31]
[356156180,1741978727776,-682.44,0.000311,31]
[356156181,1741978727803,-682.44,0.000311,31]
[356156182,1741978727831,-682.44,0.000311,31]
[356156183,1741978728113,-682.44,0.000311,31]
[356156184,1741978728142,-682.44,0.000311,31]
[356156185,1741978728169,-682.44,0.000311,31]
[356156186,1741978728201,-682.44,0.000311,31]
[356156187,1741978728229,-682.44,0.000311,31]
[356156188,1741978728258,-682.44,0.000311,31]
[356156189,1741978728286,-682.44,0.000311,31]
[356156190,1741978728314,-682.44,0.000311,31]
[356156191,1741978728342,-682.44,0.000311,31]
[356156192,1741978728370,-682.44,0.000311,31]
[356156193,1741978728399,-682.44,0.000311,31]
[356156194,1741978728427,-682.44,0.000311,31]
[356156195,1741978728454,-682.44,0.000311,31]
[356156196,1741978728481,-682.44,0.000311,31]
[356156197,1741978728510,-682.44,0.000311,31]
[356156198,1741978728537,-682.44,0.000311,31]
[356156199,1741978728565,-682.44,0.000311,31]
[356156200,1741978728592,-682.44,0.000311,31]
[356156201,1741978728629,-682.44,0.000311,31]
[356156202,1741978728660,-682.44,0.000311,31]
[356156203,1741978728687,-150.0,0.00031406,120]
[356156204,1741978728713,-150.0,0.00031911,120]
[356156205,1741978728738,-1400.0,0.00032,120]
[356156206,1741978728765,-1000.0,0.00032,120]
[356156207,1741978728790,-4422.53128297,0.00032,120]
[356156208,1741978728820,-682.44,0.000323,31]
[356156209,1741978728848,-682.44,0.000323,31]
[356156210,1741978728877,-682.44,0.000323,31]
[356156211,1741978728906,-682.44,0.000323,31]
[356156212,1741978728935,-682.44,0.000323,31]
[356156213,1741978728964,-682.44,0.000323,31]
[356156214,1741978728993,-682.44,0.000323,31]
[356156215,1741978729022,-682.44,0.000323,31]
[356156216,1741978729051,-682.44,0.000323,31]
[356156217,1741978729080,-682.44,0.000323,31]
[356156218,1741978729110,-682.44,0.000323,31]
[356156219,1741978729138,-682.44,0.000323,31]
[356156220,1741978729169,-682.44,0.000323,31]
[356156221,1741978729199,-682.44,0.000323,31]
[356156222,1741978729229,-682.44,0.000323,31]
[356156223,1741978729262,-682.44,0.000323,31]
[356156224,1741978729291,-682.44,0.000323,31]
[356156225,1741978729320,-682.44,0.000323,31]
[356156226,1741978729349,-682.44,0.000323,31]
[356156227,1741978729379,-682.44,0.000323,31]
[356156228,1741978729410,-682.44,0.000323,31]
[356156229,1741978729440,-682.44,0.000323,31]
[356156230,1741978729468,-682.44,0.000323,31]
[356156231,1741978729496,-682.44,0.000323,31]
[356156232,1741978729524,-380.886,0.000325,120]
[356156233,1741978729551,-380.886,0.000325,120]
[356156234,1741978729576,-380.886,0.000325,120]
[356156235,1741978729601,-380.886,0.000325,120]
[356156236,1741978729627,-380.886,0.000325,120]
[356156237,1741978729654,-597.96,0.000326,30]
[356156238,1741978729681,-150.0,0.00032692,120]
[356156239,1741978729710,-1414.57,0.000332,120]
[356156240,1741978729736,-150.0,0.00033422,120]
[356156241,1741978729766,-682.44,0.000335,31]
[356156242,1741978729793,-682.44,0.000335,31]
[356156243,1741978729820,-682.44,0.000335,31]
[356156244,1741978729848,-682.44,0.000335,31]
[356156245,1741978729875,-682.44,0.000335,31]
[356156246,1741978729908,-682.44,0.000335,31]
[356156247,1741978729936,-682.44,0.000335,31]
[356156248,1741978729965,-682.44,0.000335,31]
[356156249,1741978729994,-682.44,0.000335,31]
[356156250,1741978730023,-682.44,0.000335,31]
[356156251,1741978730052,-682.44,0.000335,31]
[356156252,1741978730080,-682.44,0.000335,31]
[356156253,1741978730106,-1300.0,0.00034,120]
[356156254,1741978730132,-1000.0,0.00034,120]
[356156255,1741978730157,-223.429286,0.00034,120]
[356156256,1741978730185,-528.23,0.00034406,120]
[356156257,1741978730211,-1264.2248008,0.000348,120]
[356156258,1741978730239,-150.0,0.00034846,120]
[356156259,1741978730263,-1638.056,0.0003485,40]
[356156260,1741978730290,-171.00002706,0.00035,120]
[356156261,1741978730318,-200.0,0.00035,120]
[356156262,1741978730344,-288.0,0.00035,120]
[356156263,1741978730370,-150.0,0.00035169,120]
[356156264,1741978730396,-2184.43885,0.00035888,30]
[356156265,1741978730420,-1200.0,0.00036,120]
[356156266,1741978730446,-1000.0,0.00036,120]
[356156267,1741978730471,-2184.43885,0.00036088,30]
[356156268,1741978730495,-2184.43885,0.00036288,30]
[356156269,1741978730521,-2184.43885,0.00036488,30]
[356156270,1741978730546,-2184.43885,0.00036688,30]
[356156271,1741978730571,-2184.43885,0.00036888,30]
[356156272,1741978730597,-1414.57,0.000369,120]
[356156273,1741978730623,-2184.43885,0.00037088,30]
[356156274,1741978730648,-538.59075864,0.00037252,60]
[356156275,1741978730674,-2184.43885,0.00037288,30]
[356156276,1741978730701,-2184.43885,0.00037488,30]
[356156277,1741978730726,-2184.43885,0.00037688,30]
[356156278,1741978730751,-500.0,0.00037808,30]
[356156279,1741978730775,-500.0,0.00037808,30]
[356156280,1741978730802,-500.0,0.00037808,30]
[356156281,1741978730828,-500.0,0.00037808,30]
[356156282,1741978730852,-500.0,0.00037808,30]
[356156283,1741978730877,-457.0,0.00037808,30]
[356156284,1741978731121,-2184.43885,0.00037888,30]
[356156285,1741978731147,-1100.0,0.00038,120]
[356156286,1741978731172,-1000.0,0.00038,120]
[356156287,1741978731201,-813.24162403,0.00038,120]
[356156288,1741978731226,-2184.43885,0.00038088,30]
[356156289,1741978731250,-2184.43885,0.00038288,30]
[356156290,1741978731275,-1148.41,0.00038356,120]